lending/lending_fUSD_20260101
["ID","MTS","AMOUNT","RATE_DAILY","PERIOD"]
[400296843,1767306632475,-609.5398907,0.00012672,2]
[400296844,1767306632485,-609.5398907,0.00012672,2]
[400296845,1767306632494,-609.5398907,0.00012672,2]
[400296846,1767306632504,-609.5398907,0.00012672,2]
[400296847,1767306632513,-609.5398907,0.00012672,2]
[400296848,1767306632523,-609.5398907,0.00012672,2]
[400296849,1767306632532,-609.5398907,0.00012672,2]
[400296850,1767306632542,-609.5398907,0.00012672,2]
[400296851,1767306632552,-609.5398907,0.00012672,2]
[400296852,1767306632562,-609.5398907,0.00012672,2]
[400296853,1767306632571,-609.5398907,0.00012672,2]
[400296854,1767306632581,-609.5398907,0.00012672,2]
[400296855,1767306632595,-586.23395371,0.00012672,2]
[400296856,1767306632604,-586.23395371,0.00012672,2]
[400296857,1767306632613,-586.23395371,0.00012672,2]
[400296858,1767306632623,-586.23395371,0.00012672,2]
[400296859,1767306632632,-586.23395371,0.00012672,2]
[400296860,1767306632642,-586.23395371,0.00012672,2]
[400296861,1767306632652,-586.23395371,0.00012672,2]
[400296862,1767306632662,-586.23395371,0.00012672,2]
[400296863,1767306632672,-586.23395371,0.00012672,2]
[400296864,1767306632681,-586.23395371,0.00012672,2]
[400296865,1767306632691,-586.23395371,0.00012672,2]
[400296866,1767306632701,-586.23395371,0.00012672,2]
[400296867,1767306632711,-586.23395371,0.00012672,2]
[400296868,1767306632721,-586.23395371,0.00012672,2]
[400296869,1767306632731,-586.23395371,0.00012672,2]
[400296870,1767306632740,-586.23395371,0.00012672,2]
[400296871,1767306632750,-586.23395371,0.00012672,2]
[400296872,1767306632760,-1200.0,0.00012672,2]
[400296873,1767306632769,-250.0,0.00012672,2]
[400296874,1767306632779,-5547.78052241,0.00012673,2]
[400296875,1767306632791,-45311.44923972,0.00012673,2]
[400296876,1767306632800,-150.0,0.00012674,2]
[400296877,1767306632809,-150.0,0.00012674,2]
[400296878,1767306632821,-150.0,0.00012674,2]
[400296879,1767306632830,-298.69511274,0.00012674,2]
[400296880,1767306632840,-150.0,0.00012674,2]
[400296881,1767306632849,-150.0,0.00012674,2]
[400296882,1767306632859,-150.0,0.00012674,2]
[400296883,1767306632869,-150.0,0.00012674,2]
[400296884,1767306632879,-150.0,0.00012674,2]
[400296885,1767306632888,-150.0,0.00012674,2]
[400296886,1767306632898,-150.0,0.00012674,2]
[400296887,1767306632908,-150.0,0.00012674,2]
[400296888,1767306632918,-150.0,0.00012674,2]
[400296889,1767306632928,-300.0,0.00012827,2]
[400296890,1767306632937,-382.93554917,0.00012833,2]
[400296891,1767306632947,-200.1974,0.00012844,2]
[400296892,1767306632956,-500.0,0.00012946,2]
[400296893,1767306632968,-150.0,0.00013026,2]
[400296894,1767306632978,-1000.0,0.00013138,2]
[400296895,1767306632988,-758.88,0.00013208,2]
[400296896,1767306632999,-500.0,0.0001322,2]
[400296897,1767306633010,-5172.91,0.00013344,2]
[400296898,1767306633019,-11148.115,0.00013371,2]
[400296899,1767306633029,-150.0,0.00013378,2]
[400296900,1767306633040,-150.0,0.00013378,2]
[400296901,1767306633050,-150.0,0.00013378,2]
[400296902,1767306633059,-2811.81,0.00013395,2]
[400296903,1767306633069,-14764.09991209,0.00013411,2]
[400296904,1767306633079,-408.39705373,0.00013469,2]
[400296905,1767306633088,-10389.69,0.00013471,2]
[400296906,1767306633098,-500.0,0.00013494,2]
[400296907,1767306633108,-1310.35,0.00013511,2]
[400296908,1767306633118,-1552.451,0.00013511,2]
[400296909,1767306633128,-215.005,0.00013511,2]
[400296910,1767306633137,-500.0,0.00013699,2]
[400296911,1767306633147,-500.0,0.00013699,2]
[400296912,1767306633157,-481.44815055,0.00013699,2]
[400296913,1767306633167,-150.0,0.0001373,2]
[400296914,1767306633177,-500.0,0.00013768,2]
[400296915,1767306633187,-255.0,0.00013773,2]
[400296916,1767306633197,-14764.09991204,0.00013799,2]
[400296917,1767306633207,-600.0,0.00013831,2]
[400296918,1767306633217,-195.0,0.00013831,2]
[400296919,1767306633227,-420.0,0.000139,2]
[400296920,1767306633237,-420.0,0.000139,2]
[400296921,1767306633246,-1200.0,0.00013901,2]
[400296922,1767306633257,-1680.0,0.00013938,2]
[400296923,1767306633267,-2500.0,0.00013939,2]
[400296924,1767306633278,-2500.0,0.00013939,2]
[400296925,1767306633288,-2487.27417216,0.00013939,2]
[400296926,1767306633297,-600.0,0.00013939,2]
[400296927,1767306633307,-195.0,0.00013939,2]
[400296928,1767306633317,-300.0,0.00013939,2]
[400296929,1767306633328,-250.0,0.00013939,2]
[400296930,1767306633338,-195.0,0.0001394,2]
[400296931,1767306633347,-198.35853654,0.0001394,2]
[400296932,1767306633358,-195.0,0.0001394,2]
[400296933,1767306633368,-300.0,0.0001394,2]
[400296934,1767306633378,-300.0,0.0001394,2]
[400296935,1767306633389,-300.0,0.0001394,2]
[400296936,1767306633399,-300.0,0.0001394,2]
[400296937,1767306633409,-250.0,0.0001394,2]
[400296938,1767306633419,-6697.7245,0.00013999,2]
[400296939,1767306633428,-2500.0,0.00013999,2]
[400296940,1767306633438,-848.82904937,0.0001401,2]
[400296941,1767306633448,-12621.33340883,0.0001401,2]
[400296942,1767306633457,-185.37020136,0.0001401,2]
[400296943,1767306633468,-500.0,0.00014042,2]
[400296944,1767306633477,-150.0,0.00014082,2]
[400296945,1767306633487,-150.0,0.00014082,2]
[400296946,1767306633496,-150.0,0.00014082,2]
[400296947,1767306633506,-150.0,0.00014082,2]
[400296948,1767306633515,-150.0,0.00014082,2]
[400296949,1767306633525,-150.0,0.00014082,2]
[400296950,1767306633535,-150.0,0.00014082,2]
[400296951,1767306633545,-150.0,0.00014082,2]
[400296952,1767306633554,-151.0,0.0001409,2]
[400296953,1767306633563,-151.0,0.0001409,2]
[400296954,1767306633574,-153.43746121,0.0001409,2]
[400296955,1767306633584,-500.0,0.00014098,2]
[400296956,1767306633593,-500.0,0.00014098,2]
[400296957,1767306633603,-500.0,0.00014098,2]
[400296958,1767306633612,-500.0,0.00014098,2]
[400296959,1767306633623,-500.0,0.00014098,2]
[400296960,1767306633633,-500.0,0.00014098,2]
[400296961,1767306633643,-500.0,0.00014098,2]
[400296962,1767306633652,-621.72362606,0.00014098,2]
[400296963,1767306633662,-500.0,0.00014098,2]
[400296964,1767306633671,-500.0,0.00014098,2]
[400296965,1767306633680,-500.0,0.00014098,2]
[400296966,1767306633690,-550.60903699,0.00014098,2]
[400296967,1767306633699,-500.0,0.00014098,2]
[400296968,1767306633709,-500.0,0.00014098,2]
[400296969,1767306633718,-500.0,0.00014098,2]
[400296970,1767306633728,-500.0,0.00014098,2]
[400296971,1767306633738,-500.0,0.00014098,2]
[400296972,1767306633751,-500.0,0.00014098,2]
[400296973,1767306633763,-500.0,0.00014098,2]
[400296974,1767306633773,-500.0,0.00014098,2]
[400296975,1767306633782,-500.0,0.00014098,2]
[400296976,1767306633792,-500.0,0.00014098,2]
[400296977,1767306633802,-535.35055637,0.00014098,2]
[400296978,1767306633812,-455.06899995,0.00014098,2]
[400296979,1767306633823,-500.0,0.00014098,2]
[400296980,1767306633832,-500.0,0.00014098,2]
[400296981,1767306633841,-500.0,0.00014098,2]
[400296982,1767306633851,-500.0,0.00014098,2]
[400296983,1767306633861,-500.0,0.00014098,2]
[400296984,1767306633871,-500.0,0.00014098,2]
[400296985,1767306633880,-500.0,0.00014098,2]
[400296986,1767306633890,-500.0,0.00014098,2]
[400296987,1767306633899,-500.0,0.00014098,2]
[400296988,1767306633909,-500.0,0.00014098,2]
[400296989,1767306633919,-500.0,0.00014098,2]
[400296990,1767306633928,-500.0,0.00014098,2]
[400296991,1767306633938,-500.0,0.00014098,2]
[400296992,1767306633948,-562.40576989,0.00014098,2]
[400296993,1767306633958,-273.77153773,0.00014098,2]
[400296994,1767306633971,-500.0,0.00014098,2]
[400296995,1767306633981,-502.50439874,0.00014098,2]
[400296996,1767306633991,-300.0,0.0001411,2]
[400296997,1767306634001,-1705.44,0.00014128,2]
[400296998,1767306634011,-14764.09991204,0.00014186,2]
[400296999,1767306634021,-70908.95353422,0.00014208,2]
[400297000,1767306634030,-185.37020135,0.00014273,2]
[400297001,1767306634041,-165.9696,0.00014299,2]
[400297002,1767306634051,-33537.5398,0.00014299,2]
[400297003,1767306634060,-1000.0,0.00014299,2]
[400297004,1767306634070,-193.72,0.00014304,2]
[400297005,1767306634080,-500.0,0.00014316,2]
[400297006,1767306634090,-12621.33340877,0.00014331,2]
[400297007,1767306634100,-500.0,0.00014373,2]
[400297008,1767306634109,-500.51324187,0.00014373,2]
[400297009,1767306634118,-500.0,0.00014373,2]
[400297010,1767306634128,-175.01901624,0.00014373,2]
[400297011,1767306634139,-536.24942027,0.00014373,2]
[400297012,1767306634148,-224.41097183,0.00014373,2]
[400297013,1767306634157,-473.8194822,0.00014373,2]
[400297014,1767306634167,-500.0,0.00014373,2]
[400297015,1767306634177,-500.0,0.00014373,2]
[400297016,1767306634186,-500.88642277,0.00014373,2]
[400297017,1767306634195,-500.0,0.00014373,2]
[400297018,1767306634205,-500.0,0.00014373,2]
[400297019,1767306634214,-500.0,0.00014373,2]
[400297020,1767306634224,-157.21734168,0.00014373,2]
[400297021,1767306634234,-500.0,0.00014373,2]
[400297022,1767306634244,-165.07212519,0.00014373,2]
[400297023,1767306634254,-500.0,0.00014373,2]
[400297024,1767306634264,-500.0,0.00014373,2]
[400297025,1767306634274,-168.856598,0.00014373,2]
[400297026,1767306634284,-163.10935122,0.00014373,2]
[400297027,1767306634293,-305.00383529,0.00014373,2]
[400297028,1767306634304,-500.0,0.00014373,2]
[400297029,1767306634313,-484.98892147,0.00014373,2]
[400297030,1767306634322,-500.0,0.00014373,2]
[400297031,1767306634332,-500.0,0.00014373,2]
[400297032,1767306634341,-500.5153804,0.00014373,2]
[400297033,1767306634351,-500.0,0.00014373,2]
[400297034,1767306634360,-169.55585962,0.00014373,2]
[400297035,1767306634369,-500.0,0.00014373,2]
[400297036,1767306634380,-538.18007522,0.00014373,2]
[400297037,1767306634389,-500.0,0.00014373,2]
[400297038,1767306634402,-500.0,0.00014373,2]
[400297039,1767306634411,-500.0,0.00014373,2]
[400297040,1767306634421,-236.13552508,0.00014373,2]
[400297041,1767306634430,-500.0,0.00014373,2]
[400297042,1767306634440,-500.0,0.00014373,2]
[400297043,1767306634449,-500.0,0.00014373,2]
[400297044,1767306634459,-500.0,0.00014373,2]
[400297045,1767306634469,-437.57390351,0.00014373,2]
[400297046,1767306634479,-500.0,0.00014373,2]
[400297047,1767306634490,-500.0,0.00014373,2]
[400297048,1767306634500,-500.0,0.00014398,2]
[400297049,1767306634509,-500.0,0.00014398,2]
[400297050,1767306634519,-500.0,0.00014398,2]
[400297051,1767306634529,-500.0,0.00014398,2]
[400297052,1767306634539,-1705.44,0.00014402,2]
[400297053,1767306634549,-848.82904931,0.00014423,2]
[400297054,1767306634558,-151.0,0.00014522,2]
[400297055,1767306634568,-20359.97448696,0.00014539,2]
[400297056,1767306634578,-14764.09991204,0.00014574,2]
[400297057,1767306634588,-500.0,0.0001459,2]
[400297058,1767306634598,-12621.33340877,0.00014652,2]
[400297059,1767306634607,-1705.44,0.00014676,2]
[400297060,1767306634618,-1000.0,0.0001478,2]
[400297061,1767306634628,-272.53,0.000148,2]
[400297062,1767306634637,-848.82904931,0.00014836,2]
[400297063,1767306634647,-195.54717431,0.00014864,2]
[400297064,1767306634657,-500.0,0.0001492,2]
[400297065,1767306634667,-500.0,0.0001492,2]
[400297066,1767306634677,-500.0,0.0001492,2]
[400297067,1767306634686,-1000.51013306,0.00014921,2]
[400297068,1767306634696,-632.38992075,0.00014921,2]
[400297069,1767306634706,-1000.85459949,0.00014921,2]
[400297070,1767306634716,-1000.0,0.00014921,2]
[400297071,1767306634727,-1000.0,0.00014921,2]
[400297072,1767306634737,-1000.0,0.00014921,2]
[400297073,1767306634746,-1099.98058356,0.00014921,2]
[400297074,1767306634756,-1000.0,0.00014921,2]
[400297075,1767306634766,-1000.0,0.00014921,2]
[400297076,1767306634775,-1000.0,0.00014921,2]
[400297077,1767306634785,-645.49615289,0.00014921,2]
[400297078,1767306634794,-1000.0,0.00014921,2]
[400297079,1767306634803,-1000.0,0.00014921,2]
[400297080,1767306634813,-826.25527827,0.00014921,2]
[400297081,1767306634823,-1000.0,0.00014921,2]
[400297082,1767306634834,-1133.29597512,0.00014921,2]
[400297083,1767306634843,-367.26456673,0.00014921,2]
[400297084,1767306634853,-1000.0,0.00014921,2]
[400297085,1767306634863,-1000.0,0.00014921,2]
[400297086,1767306634873,-500.0,0.00014921,2]
[400297087,1767306634883,-1000.0,0.00014921,2]
[400297088,1767306634893,-1000.0,0.00014921,2]
[400297089,1767306634902,-1000.0,0.00014921,2]
[400297090,1767306634912,-1705.44,0.0001495,2]
[400297091,1767306634922,-14764.09991204,0.00014962,2]
[400297092,1767306634932,-12621.33340877,0.00014973,2]
[400297093,1767306634942,-433.0,0.00014977,2]
[400297094,1767306634952,-1705.44,0.00015224,2]
[400297095,1767306634961,-848.82904931,0.00015249,2]
[400297096,1767306634971,-587.0,0.00015249,2]
[400297097,1767306634983,-587.0,0.00015249,2]
[400297098,1767306634993,-12621.33340877,0.00015294,2]
[400297099,1767306635003,-9999.99,0.0001531,2]
[400297100,1767306635013,-9999.99,0.0001531,2]
[400297101,1767306635025,-9999.99,0.0001531,2]
[400297102,1767306635034,-2306.33,0.0001531,2]
[400297103,1767306635045,-150.99,0.0001531,2]
[400297104,1767306635056,-7626.04,0.0001531,2]
[400297105,1767306635066,-2359.17,0.0001531,2]
[400297106,1767306635076,-9999.99,0.0001531,2]
[400297107,1767306635087,-2351.0,0.00015332,2]
[400297108,1767306635096,-14764.09991204,0.00015349,2]
[400297109,1767306635106,-941.4218678,0.00015468,2]
[400297110,1767306635116,-1500.0,0.00015468,2]
[400297111,1767306635126,-1500.0,0.00015468,2]
[400297112,1767306635137,-1500.0,0.00015468,2]
[400297113,1767306635146,-1500.0,0.00015468,2]
[400297114,1767306635156,-1500.0,0.00015468,2]
[400297115,1767306635166,-1500.0,0.00015468,2]
[400297116,1767306635175,-634.28770415,0.00015468,2]
[400297117,1767306635186,-501.70391837,0.00015468,2]
[400297118,1767306635195,-1500.0,0.00015468,2]
[400297119,1767306635205,-1007.4808143,0.00015468,2]
[400297120,1767306635215,-1500.0,0.00015468,2]
[400297121,1767306635224,-1254.67001786,0.00015468,2]
[400297122,1767306635234,-1074.4149174,0.00015468,2]
[400297123,1767306635244,-1705.44,0.00015498,2]
[400297124,1767306635255,-12621.33340877,0.00015616,2]
[400297125,1767306635265,-848.82904931,0.00015661,2]
[400297126,1767306635275,-500.0,0.00015726,2]
[400297127,1767306635284,-14764.09991204,0.00015737,2]
[400297128,1767306635294,-500.0,0.00015761,2]
[400297129,1767306635303,-1705.44,0.00015772,2]
[400297130,1767306635313,-290.8684235,0.00015864,2]
[400297131,1767306635323,-2653.0,0.00015891,2]
[400297132,1767306635334,-12621.33340877,0.00015937,2]
[400297133,1767306635344,-1346.98306814,0.00016,2]
[400297134,1767306635354,-2000.0,0.00016016,2]
[400297135,1767306635364,-2000.0,0.00016016,2]
[400297136,1767306635374,-2000.0,0.00016016,2]
[400297137,1767306635384,-2000.0,0.00016016,2]
[400297138,1767306635394,-2000.0,0.00016016,2]
[400297139,1767306635403,-2000.0,0.00016016,2]
[400297140,1767306635413,-2000.0,0.00016016,2]
[400297141,1767306635423,-2000.0,0.00016016,2]
[400297142,1767306635433,-1705.44,0.00016046,2]
[400297143,1767306635443,-848.82904931,0.00016074,2]
[400297144,1767306635452,-14764.09991204,0.00016125,2]
[400297145,1767306635462,-42946.57004768,0.000162,5]
[400297146,1767306635472,-12621.33340877,0.00016258,2]
[400297147,1767306635482,-736.0,0.00016269,2]
[400297148,1767306635491,-1705.44,0.0001632,2]
[400297149,1767306635502,-1000.0,0.00016423,2]
[400297150,1767306635512,-500.0,0.00016438,2]
[400297151,1767306635702,-500.0,0.00016438,2]
[400297152,1767306635713,-500.0,0.00016438,2]
[400297153,1767306635723,-500.0,0.00016438,2]
[400297154,1767306635733,-500.0,0.00016438,2]
[400297155,1767306635743,-250.0,0.00016438,2]
[400297156,1767306635752,-500.0,0.00016438,2]
[400297157,1767306635762,-500.0,0.00016438,2]
[400297158,1767306635772,-500.0,0.00016438,2]
[400297159,1767306635781,-500.0,0.00016438,2]
[400297160,1767306635791,-500.0,0.00016438,2]
[400297161,1767306635801,-500.0,0.00016438,2]
[400297162,1767306635810,-500.0,0.00016438,2]
[400297163,1767306635820,-500.0,0.00016438,2]
[400297164,1767306635830,-500.0,0.00016438,2]
[400297165,1767306635840,-500.0,0.00016438,2]
[400297166,1767306635851,-500.0,0.00016438,2]
[400297167,1767306635861,-500.0,0.00016438,2]
[400297168,1767306635871,-500.0,0.00016438,2]
[400297169,1767306635881,-500.0,0.00016438,2]
[400297170,1767306635891,-500.0,0.00016438,2]
[400297171,1767306635900,-500.0,0.00016438,2]
[400297172,1767306635911,-500.0,0.00016438,2]
[400297173,1767306635922,-500.0,0.00016438,2]
[400297174,1767306635932,-500.0,0.00016438,2]
[400297175,1767306635942,-500.0,0.00016438,2]
[400297176,1767306635952,-500.0,0.00016438,2]
[400297177,1767306635962,-500.0,0.00016438,2]
[400297178,1767306635972,-500.0,0.00016438,2]
[400297179,1767306635984,-500.0,0.00016438,2]
[400297180,1767306635994,-500.0,0.00016438,2]
[400297181,1767306636004,-500.0,0.00016438,2]
[400297182,1767306636013,-500.0,0.00016438,2]
[400297183,1767306636025,-500.0,0.00016438,2]
[400297184,1767306636035,-500.0,0.00016438,2]
[400297185,1767306636045,-500.0,0.00016438,2]
[400297186,1767306636058,-500.0,0.00016438,2]
[400297187,1767306636068,-500.0,0.00016438,2]
[400297188,1767306636080,-500.0,0.00016438,2]
[400297189,1767306636090,-500.0,0.00016438,2]
[400297190,1767306636101,-500.0,0.00016438,2]
[400297191,1767306636111,-500.0,0.00016438,2]
[400297192,1767306636121,-500.0,0.00016438,2]
[400297193,1767306636131,-500.0,0.00016438,2]
[400297194,1767306636141,-500.0,0.00016438,2]
[400297195,1767306636151,-500.0,0.00016438,2]
[400297196,1767306636161,-500.0,0.00016438,2]
[400297197,1767306636171,-500.0,0.00016438,2]
[400297198,1767306636182,-500.0,0.00016438,2]
[400297199,1767306636192,-500.0,0.00016438,2]
[400297200,1767306636202,-341.3898103,0.00016438,2]
[400297201,1767306636212,-500.0,0.00016438,2]
[400297202,1767306636222,-500.0,0.00016438,2]
[400297203,1767306636232,-500.0,0.00016438,2]
[400297204,1767306636241,-500.0,0.00016438,2]
[400297205,1767306636251,-500.0,0.00016438,2]
[400297206,1767306636260,-500.0,0.00016438,2]
[400297207,1767306636270,-500.0,0.00016438,2]
[400297208,1767306636280,-584.13898103,0.00016438,2]
[400297209,1767306636290,-500.0,0.00016438,2]
[400297210,1767306636300,-500.0,0.00016438,2]
[400297211,1767306636310,-500.0,0.00016438,2]
[400297212,1767306636320,-500.0,0.00016438,2]
[400297213,1767306636331,-500.0,0.00016438,2]
[400297214,1767306636341,-500.0,0.00016438,2]
[400297215,1767306636351,-500.0,0.00016438,2]
[400297216,1767306636361,-848.82904931,0.00016487,2]
[400297217,1767306636371,-14764.09991204,0.00016512,2]
[400297218,1767306636381,-2500.0,0.00016564,2]
[400297219,1767306636391,-731.96614317,0.00016564,2]
[400297220,1767306636402,-1847.68423544,0.00016564,2]
[400297221,1767306636412,-2500.0,0.00016564,2]
[400297222,1767306636422,-1634.22445627,0.00016564,2]
[400297223,1767306636431,-2500.0,0.00016564,2]
[400297224,1767306636441,-1718.2586549,0.00016564,2]
[400297225,1767306636450,-2500.0,0.00016564,2]
[400297226,1767306636460,-12621.33340877,0.00016579,2]
[400297227,1767306636470,-1881.0,0.00016581,2]
[400297228,1767306636479,-1705.44,0.00016594,2]
[400297229,1767306636489,-272.53,0.0001665,2]
[400297230,1767306636499,-1071.14112039,0.0001666,2]
[400297231,1767306636509,-1881.0,0.00016684,2]
[400297232,1767306636518,-1881.0,0.00016687,2]
[400297233,1767306636527,-500.0,0.00016699,2]
[400297234,1767306636537,-150.0,0.00016699,2]
[400297235,1767306636547,-150.0,0.00016699,2]
[400297236,1767306636557,-500.0,0.00016699,2]
[400297237,1767306636566,-159.00171244,0.00016699,2]
[400297238,1767306636576,-500.0,0.00016699,2]
[400297239,1767306636586,-500.0,0.00016699,2]
[400297240,1767306636597,-150.0,0.00016699,2]
[400297241,1767306636607,-150.0,0.00016699,2]
[400297242,1767306636617,-150.0,0.00016699,2]
[400297243,1767306636627,-245.4934071,0.00016699,2]
[400297244,1767306636636,-500.0,0.00016699,2]
[400297245,1767306636646,-500.0,0.00016699,2]
[400297246,1767306636656,-500.0,0.00016699,2]
[400297247,1767306636666,-200.0,0.00016699,2]
[400297248,1767306636675,-200.0,0.00016699,2]
[400297249,1767306636685,-150.0,0.00016699,2]
[400297250,1767306636695,-150.0,0.00016699,2]
[400297251,1767306636704,-500.0,0.00016699,2]
[400297252,1767306636714,-500.0,0.00016699,2]
[400297253,1767306636724,-155.90686905,0.00016699,2]
[400297254,1767306636734,-1881.0,0.00016715,2]
[400297255,1767306636743,-800.0,0.00016729,2]
[400297256,1767306636753,-600.0,0.00016729,2]
[400297257,1767306636763,-515.48135853,0.00016754,2]
[400297258,1767306636773,-150.0,0.00016754,2]
[400297259,1767306636783,-150.0,0.00016754,2]
[400297260,1767306636793,-500.0,0.00016754,2]
[400297261,1767306636803,-500.0,0.00016754,2]
[400297262,1767306636813,-500.0,0.00016754,2]
[400297263,1767306636822,-152.86476692,0.00016754,2]
[400297264,1767306636832,-177.88806909,0.00016754,2]
[400297265,1767306636842,-207.10234457,0.00016754,2]
[400297266,1767306636851,-510.81342354,0.00016754,2]
[400297267,1767306636861,-500.0,0.00016754,2]
[400297268,1767306636870,-500.0,0.00016754,2]
[400297269,1767306636880,-150.0,0.00016754,2]
[400297270,1767306636889,-152.05672706,0.00016754,2]
[400297271,1767306636899,-500.0,0.00016754,2]
[400297272,1767306636908,-500.0,0.00016754,2]
[400297273,1767306636918,-1881.0,0.00016766,2]
[400297274,1767306636927,-150.0,0.00016809,2]
[400297275,1767306636937,-500.0,0.00016809,2]
[400297276,1767306636947,-175.38136853,0.00016809,2]
[400297277,1767306636956,-350.0,0.00016809,2]
[400297278,1767306636966,-423.35993407,0.00016809,2]
[400297279,1767306636980,-500.0,0.00016809,2]
[400297280,1767306636990,-223.32130998,0.00016809,2]
[400297281,1767306637000,-500.0,0.00016809,2]
[400297282,1767306637010,-415.84370096,0.00016809,2]
[400297283,1767306637022,-369.77048,0.0001683,2]
[400297284,1767306637032,-369.77049,0.0001683,2]
[400297285,1767306637042,-369.77049,0.0001683,2]
[400297286,1767306637054,-369.77049,0.0001685,2]
[400297287,1767306637063,-150.0,0.00016863,2]
[400297288,1767306637073,-500.0,0.00016863,2]
[400297289,1767306637084,-594.96387073,0.00016863,2]
[400297290,1767306637094,-168.92037099,0.00016863,2]
[400297291,1767306637104,-3292.0,0.00016865,2]
[400297292,1767306637114,-1705.44,0.00016868,2]
[400297293,1767306637124,-369.77049,0.0001688,2]
[400297294,1767306637134,-239.83082133,0.0001689,2]
[400297295,1767306637144,-172.44696873,0.000169,2]
[400297296,1767306637154,-10000.0,0.000169,2]
[400297297,1767306637163,-761.8623387,0.000169,2]
[400297298,1767306637173,-848.82904931,0.000169,2]
[400297299,1767306637183,-379.01849322,0.000169,2]
[400297300,1767306637193,-155.71050666,0.000169,2]
[400297301,1767306637202,-11784.81681137,0.000169,2]
[400297302,1767306637389,-836.5165974,0.000169,2]
[400297303,1767306637399,-23979.22164621,0.000169,2]
[400297304,1767306637410,-2230.75659298,0.000169,2]
[400297305,1767306637421,-3750.13392346,0.000169,2]
[400297306,1767306637433,-6983.73503568,0.000169,2]
[400297307,1767306637444,-1799.47435992,0.000169,2]
[400297308,1767306637454,-369.77048,0.0001691,2]
[400297309,1767306637464,-150.0,0.00016918,2]
[400297310,1767306637474,-500.0,0.00016918,2]
[400297311,1767306637483,-369.77049,0.0001693,2]
[400297312,1767306637494,-250.0,0.0001694,2]
[400297313,1767306637503,-504.23655901,0.00016973,2]
[400297314,1767306637513,-500.0,0.00016973,2]
[400297315,1767306637523,-163.47849716,0.00016973,2]
[400297316,1767306637533,-500.0,0.00016973,2]
[400297317,1767306637542,-500.0,0.00016973,2]
[400297318,1767306637552,-511.82107275,0.00016973,2]
[400297319,1767306637562,-500.0,0.00016973,2]
[400297320,1767306637571,-500.0,0.00016973,2]
[400297321,1767306637582,-413.88399981,0.00016973,2]
[400297322,1767306637593,-500.0,0.00016973,2]
[400297323,1767306637603,-500.8964132,0.00016973,2]
[400297324,1767306637613,-500.0,0.00016973,2]
[400297325,1767306637622,-250.0,0.00016973,2]
[400297326,1767306637632,-173.98935038,0.00016973,2]
[400297327,1767306637641,-150.0,0.00016973,2]
[400297328,1767306637650,-150.0,0.00016973,2]
[400297329,1767306637660,-185.19785802,0.0001699,2]
[400297330,1767306637669,-1881.0,0.00016992,2]
[400297331,1767306637679,-500.0,0.00016999,2]
[400297332,1767306637689,-500.0,0.00016999,2]
[400297333,1767306637698,-500.0,0.00016999,2]
[400297334,1767306637708,-500.0,0.00016999,2]
[400297335,1767306637718,-500.0,0.00016999,2]
[400297336,1767306637729,-500.0,0.00016999,2]
[400297337,1767306637738,-506.99337488,0.00016999,2]
[400297338,1767306637747,-500.0,0.00016999,2]
[400297339,1767306637757,-500.0,0.00016999,2]
[400297340,1767306637766,-500.0,0.00016999,2]
[400297341,1767306637776,-500.0,0.00016999,2]
[400297342,1767306637785,-500.0,0.00016999,2]